Cogmind - Beta 15 --- EXPLORER MODE // 2025.06.03 @ 08:59:33 Player: Goofy__J Result: Destroyed by T9-TF7(R) with Subdweller Laser Performance ------------- Evolutions (0) 0 Regions Visited (3) 600 Robots Destroyed (4) 20 Value Destroyed (137) 137 Prototype IDs (0) 0 Alien Tech Used (0) 0 Bonus (0) 0 TOTAL SCORE: 757 Bonus ------- None Cogmind --------- Core Integrity 0/250 Matter 290/300 Energy 200/200 System Corruption 0% Temperature Cool (6) Movement Rolling (110) Location -10/Subcaves Parts ------- > --- POWER (1) -------- Subdweller Power Source > --- PROPULSION (2) --- Subdweller Monowheel > --- UTILITY (3) ------ Makeshift Light Armor Plating > --- WEAPON (2) ------- (None) > --- INVENTORY (5) ---- Utility Shielding Light Armor Plating Thief Drone Bay Peak State ------------ > --- POWER ------------ Subdweller Power Source > --- PROPULSION ------- Subdweller Monowheel Subdweller Monowheel > --- UTILITY ---------- Sensor Array Targeting Computer Light Armor Plating > --- WEAPON ----------- EM Pulse Gun Subdweller Laser > --- INVENTORY -------- Subdweller Power Source Utility Shielding Light Armor Plating Thief Drone Bay [Rating: 13] Favorites ----------- Power Ion Engine Engine Ion Engine Propulsion Improved Treads Treads Improved Treads Wheel Subdweller Monowheel Utility Targeting Computer Device Sensor Array Processor Targeting Computer Protection Light Armor Plating Weapon EM Pulse Gun Energy Gun EM Pulse Gun Build | -11 -10 -10 -10 ------- Run | Yrd Mat Min Sub Slots Evolved 1 | . 1 . . Power . | . . . . Propulsion . | . . . . Utility 1 | . 1 . . Weapon . | . . . . Parts Attached 17 | 7 3 . 7 Power 3 | 1 . . 2 Engine 3 | 1 . . 2 Core . | . . . . Reactor . | . . . . Propulsion 7 | 2 2 . 3 Treads 4 | 2 2 . . Leg . | . . . . Wheel 3 | . . . 3 Hover . | . . . . Flight . | . . . . Utility 4 | 2 1 . 1 Device 1 | 1 . . . Storage . | . . . . Processor 1 | 1 . . . Hackware . | . . . . Protection 2 | . 1 . 1 Artifact . | . . . . Weapon 3 | 2 . . 1 Energy Gun 3 | 2 . . 1 Energy Cannon . | . . . . Ballistic Gun . | . . . . Ballistic Cannon . | . . . . Launcher . | . . . . Special Weapon . | . . . . Impact Weapon . | . . . . Slashing Weapon . | . . . . Piercing Weapon . | . . . . Special Melee Weapon . | . . . . Unidentified Prototypes . | . . . . Parts Lost 9 | . . . 9 Power 2 | . . . 2 Propulsion 1 | . . . 1 Utility 3 | . . . 3 Weapon 3 | . . . 3 Highest Loss Streak 5 | . . . 5 To Critical Strikes 2 | . . . 2 Average Backups 3 | 1 2 3 4 Power . | . . . . Propulsion 1 | . 1 2 1 Utility 1 | 1 1 1 2 Weapon . | . . . . Tool/Special . | . . . . Unused Backups 5 | . . . 5 Power . | . . . . Propulsion 2 | . . . 2 Utility 3 | . . . 3 Weapon . | . . . . Tool/Special . | . . . . Average Slot Usage (%) 87 | . 100 100 67 Engine 11 | . 12 12 11 Treads 18 | . 25 25 8 Wheel 4 | . . . 10 Device 10 | . 12 12 9 Processor 10 | . 12 12 9 Protection 11 | . 12 12 9 Energy Gun 18 | . 25 25 8 Peak Build Rating 13 | 7 10 11 13 Average Rating 9 | 5 9 10 9 On Entrance 7 | . 7 10 11 Naked Turns . | . . . . Heaviest Build 15 | 10 13 13 15 Greatest Support 46 | 40 46 46 46 Greatest Overweight (x) 3 | 3 . . . Average Overweight (x) . | . . . . Largest Inventory Capacity 5 | 5 5 5 5 Average Capacity 5 | 5 5 5 5 Most Carried 5 | 2 5 4 5 Average Carried 3 | 1 2 3 4 Final Capacity 5 | 5 5 5 5 Final Carried 4 | 2 3 4 3 Class Distribution -------------------- 100% | Hacker-Mutant Dominant Class ---------------- Hacker-Mutant | -10/Materials Hacker-Mutant | -10/Mines Hacker-Mutant | -10/Subcaves Resources | -11 -10 -10 -10 ----------- Run | Yrd Mat Min Sub Matter Collected 345 | 212 23 65 45 Remotely . | . . . . Salvage Created 156 | . 23 104 29 Parts 9 | . 2 5 2 Haulers Intercepted . | . . . . Recyclers Shooed . | . . . . Parts Field Recycled . | . . . . Retrieved Matter . | . . . . Parts Self-Destructed . | . . . . Prevented . | . . . . Kills | -11 -10 -10 -10 ------- Run | Yrd Mat Min Sub Combat Hostiles Destroyed 3 | . . 2 1 Guns 1 | . . 1 . AOE 2 | . . 1 1 Classes Destroyed 3 | . 1 1 1 Watcher 1 | . 1 . . Grunt 2 | . . 2 . Subdweller 1 | . . . 1 Best Kill Streak 2 | . 1 2 1 Combat Bots Only 2 | . . 2 1 Max Kills in Single Turn 1 | . 1 1 1 Gunslinging . | . . . . Exploded 1 | . . 1 1 Melee . | . . . . Uniques/NPCs Destroyed . | . . . . Combat | -11 -10 -10 -10 -------- Run | Yrd Mat Min Sub Hostile Shots Fired 91 | . . 16 75 Missed 28 | . . 4 24 Hits 63 | . . 12 51 Projectile 63 | . . 12 51 Critical Strikes 3 | . . . 3 Damage Taken 919 | . . 95 824 Core 258 | . . . 258 Absorbed by Shields . | . . . . Ignored by Resistances 480 | . . 60 420 Core Remaining (%) 100 | 100 . . . Volleys Fired 24 | . 2 7 15 Largest 2 | . 2 2 2 Hottest 80 | . 80 80 80 Shots Fired 35 | . 4 14 17 Gun 35 | . 4 14 17 Cannon . | . . . . Launcher . | . . . . Special . | . . . . Kinetic . | . . . . Thermal 5 | . . . 5 Explosive . | . . . . Electromagnetic 30 | . 4 14 12 Robot Hit Streak 20 | . 3 7 20 Robot Miss Streak 1 | . 1 1 . Penetration Max . | . . . . Secondary Targets . | . . . . Shots Hit Robots 32 | . 3 12 17 Core Hits 10 | . 1 4 5 Critical Kills . | . . . . Critical Parts Destroyed . | . . . . Critical Strikes 2 | . . 1 1 Corrupt 2 | . . 1 1 Melee Attacks . | . . . . Impact . | . . . . Slashing . | . . . . Piercing . | . . . . Sneak Attacks . | . . . . Combat Hostiles . | . . . . Follow-up Attacks . | . . . . Damage Inflicted 763 | . 74 200 489 Guns 433 | . 46 145 242 Cannons . | . . . . Explosions 297 | . 28 55 214 Melee . | . . . . Ramming 33 | . . . 33 Kinetic . | . . . . Thermal 404 | . 28 55 321 Explosive . | . . . . Electromagnetic 326 | . 46 145 135 Impact . | . . . . Slashing . | . . . . Piercing . | . . . . Highest Corruption . | . . . . Average Corruption . | . . . . Corruption Purged . | . . . . Corruption Blocked . | . . . . Overload Shots . | . . . . Overflow Damage . | . . . . Projectiles . | . . . . Explosions . | . . . . Melee . | . . . . Knockbacks 1 | . . . 1 Impact 1 | . . . 1 Kinetic . | . . . . Secondary . | . . . . Self-Inflicted Damage 13 | . . . 13 Shots . | . . . . Rammed 16 | . . . 16 Targets Rammed 16 | . . . 16 Kicked . | . . . . Crushed . | . . . . Highest Temperature 229 | . 54 229 . Average Temperature 107 | . 28 126 . Received Heat Transfer 249 | . . 87 162 Siege Activations . | . . . . Martial Activations . | . . . . Shielding Activations . | . . . . Robots Disrupted . | . . . . Combat Hostiles . | . . . . Robots Corrupted . | . . . . Combat Hostiles . | . . . . Parts Fried 1 | . . 1 . Impact Corruptions . | . . . . Robots Melted . | . . . . Combat Hostiles . | . . . . Parts Melted . | . . . . Heat Transferred 325 | . . 50 275 Parts Sabotaged . | . . . . Parts Stolen . | . . . . Parts Stripped . | . . . . Power Chain Reactions 3 | . 1 1 1 Alert | -11 -10 -10 -10 ------- Run | Yrd Mat Min Sub Maximum Alert Level . | . . . . Low Security (%) 100 | 100 100 100 . Level 1 . | . . . . Level 2 . | . . . . Level 3 . | . . . . Level 4 . | . . . . Level 5 . | . . . . High Security . | . . . . Max Security . | . . . . Peak Influence 58 | . 13 58 . Initial . | . . . . Average 4 | . . 7 . Influence Increases 71 | . 13 58 . Destroy 0b10 Robot/C 40 | . . 40 . Destroy 0b10 Robot/NC 5 | . 5 . . Destroy Leader 12 | . 2 10 . Destroy Structure 14 | . 6 8 . Influence Decreases 71 | . 13 58 . Time Decay 71 | . 13 58 . Squads Dispatched . | . . . . Investigation . | . . . . Extermination . | . . . . Reinforcement . | . . . . Assault . | . . . . Garrison . | . . . . Intercept . | . . . . Searches Triggered . | . . . . Construction Impeded . | . . . . Haulers Reinforced . | . . . . Active Scanning Responses . | . . . . Cargo Convoy Interrupts . | . . . . Stealth | -11 -10 -10 -10 --------- Run | Yrd Mat Min Sub Distress Signals . | . . . . Communications Jammed . | . . . . Distress Signals . | . . . . Times Spotted 16 | . 2 2 12 Peak Tracking Total 6 | . 1 2 6 Tactical Retreats 1 | . . . 1 Traps | -11 -10 -10 -10 ------- Run | Yrd Mat Min Sub Traps Triggered 4 | . . . 4 Indirectly . | . . . . Trap Hack Attempts . | . . . . Triggered . | . . . . Disarmed . | . . . . Reprogrammed . | . . . . Reused . | . . . . Traps Extracted . | . . . . Installed . | . . . . Triggered . | . . . . Machines | -11 -10 -10 -10 ---------- Run | Yrd Mat Min Sub Machines Disabled . | . . . . Max in Single Turn . | . . . . Machines Repaired . | . . . . Machines Dismantled . | . . . . Machines Sabotaged . | . . . . Overloaded Fab Kills . | . . . . Hacking | -11 -10 -10 -10 --------- Run | Yrd Mat Min Sub Machines Accessed 3 | . 2 1 . Terminals 2 | . 2 . . Fabricators . | . . . . Repair Stations . | . . . . Recycling Units . | . . . . Scanalyzers . | . . . . Garrison Access . | . . . . Total Hacks 6 | . 5 1 . Successful 2 | . 1 1 . Failed 4 | . 4 . . Catastrophic . | . . . . Database Lockouts . | . . . . Manual 5 | . 5 . . Terminals 5 | . 5 . . Fabricators . | . . . . Repair Stations . | . . . . Recycling Units . | . . . . Scanalyzers . | . . . . Garrison Access . | . . . . Terminal Hacks 2 | . 1 1 . Open Door 1 | . . 1 . Branch Access Points 1 | . 1 . . Fabricator Hacks . | . . . . Repair Station Hacks . | . . . . Recycling Unit Hacks . | . . . . Scanalyzer . | . . . . Garrison Access Hacks . | . . . . Unauthorized Hacks . | . . . . Terminals . | . . . . Fabricators . | . . . . Repair Stations . | . . . . Recycling Units . | . . . . Scanalyzers . | . . . . Garrison Access . | . . . . Data Cores Recovered . | . . . . Used . | . . . . Hacking Detections 2 | . 2 . . Full Trace Events . | . . . . Feedback Events . | . . . . Feedback Blocked . | . . . . Robot Schematics Acquired . | . . . . Robots Built . | . . . . Authchips . | . . . . Time . | . . . . Total Robot Build Rating . | . . . . Part Schematics Acquired . | . . . . Parts Built . | . . . . Authchips . | . . . . Time . | . . . . Total Part Build Rating . | . . . . Parts Repaired . | . . . . Time . | . . . . Parts Recycled . | . . . . Recycled Matter . | . . . . Retrieved Matter . | . . . . Retrieved Components . | . . . . Parts Scanalyzed . | . . . . Part Schematics Acquired . | . . . . Parts Damaged . | . . . . Bothacking | -11 -10 -10 -10 ------------ Run | Yrd Mat Min Sub Used RIF Installer . | . . . . Robots Hacked . | . . . . Non-combat . | . . . . Combat . | . . . . Robot Hacks Applied . | . . . . Relay Couplers Released . | . . . . Fabnet Peak Effective % . | . . . . Robots Rewired . | . . . . Allies Hacked . | . . . . Hacks Repelled . | . . . . Allies | -11 -10 -10 -10 -------- Run | Yrd Mat Min Sub Total Allies . | . . . . Largest Group . | . . . . Highest-Rated Group . | . . . . Highest-Rated Ally . | . . . . Total Orders . | . . . . Ally Attacks . | . . . . Total Damage . | . . . . Kills . | . . . . Allies Corrupted . | . . . . Allies Melted . | . . . . Intel | -11 -10 -10 -10 ------- Run | Yrd Mat Min Sub Active Infowar (turns) 865 | 71 238 293 263 Sensors 865 | 71 238 293 263 Robot Analysis Total . | . . . . Derelict Logs Recovered 2 | . . 1 1 Drone Launches . | . . . . Drone Recoveries . | . . . . Exploration | -11 -10 -10 -10 ------------- Run | Yrd Mat Min Sub Turns Passed 954 | 74 238 293 349 Spaces Moved 561 | 48 116 168 229 Core 23 | 23 . . . Treads 362 | 25 116 168 53 Legs . | . . . . Wheels 176 | . . . 176 Hover . | . . . . Flight . | . . . . Fastest Speed 50 | 50 160 160 110 Average Speed 141 | 130 160 160 121 Slowest Speed 200 | 200 160 160 160 Overloaded Moves . | . . . . Propulsion Burnouts . | . . . . Robots Hopped . | . . . . Potential Cave-ins . | . . . . Cave-ins Triggered . | . . . . Exploration Rate (%) 21 | 3 20 42 20 Regions Visited 3 Branch Regions 2 Pre-discovered Areas 2 | . . 1 1 Known Exits Taken 3 | 1 1 1 . Unknown Exits Taken . | . . . . Scrap Searched . | . . . . Spaces Dug . | . . . . Terrain Destroyed 20 | . 5 9 6 Melee . | . . . . Projectile . | . . . . AOE 20 | . 5 9 6 Terrain Rammed . | . . . . Walls Destroyed . | . . . . Machines Disabled . | . . . . Actions | -11 -10 -10 -10 --------- Run | Yrd Mat Min Sub Total 677 | 56 165 178 278 Wait 44 | . 41 3 . Move 558 | 47 115 167 229 Hop . | . . . . Pick Up 8 | 2 2 1 3 Fast Attach 12 | 7 . . 5 Attach 3 | . 1 . 2 Detach . | . . . . Swap 4 | . 2 . 2 Drop 8 | . 2 . 6 Fire 24 | . 2 7 15 Melee . | . . . . Ram 16 | . . . 16 Kick . | . . . . Crush . | . . . . Escape Stasis . | . . . . Rewire . | . . . . Trap . | . . . . Miscellaneous . | . . . . Route ------- -11/Scrapyard -10/Materials (discovered 2 exits: *Min x2) -10/Mines -10/Subcaves History --------- Turn | Location | Event 6 | -11/Scrapyard | Identified exit to Materials 6 | -11/Scrapyard | Discovered exit to Materials (range 15) 75 | -11/Scrapyard | Entered Materials 75 | -10/Materials | Evolved 1 slot: Utility x1 272 | -10/Materials | Identified exit to Mines 313 | -10/Materials | Entered Mines 314 | -10/Mines | Build established: Hacker-Mutant 359 | -10/Mines | Met a Derelict bent on vengeance 534 | -10/Mines | Identified exit to Subcaves 534 | -10/Mines | Discovered exit to Subcaves (range 9) 572 | -10/Mines | Found the Drone Emporium 573 | -10/Mines | Learned location of Zion (-7) 577 | -10/Mines | Found Prototype Device 606 | -10/Mines | Entered Subcaves 675 | -10/Subcaves | Ambushed by swarm of Subdwellers 715 | -10/Subcaves | Lost 3 allies 801 | -10/Subcaves | Lost 5 parts (1p1n1u2w) 838 | -10/Subcaves | Shifting Twisted Machinery released Mak. Light Armor Plating 842 | -10/Subcaves | A swath of the cavern ceiling suddenly collapsed 851 | -10/Subcaves | Core integrity fell below 50% 883 | -10/Subcaves | Core integrity fell below 20% 909 | -10/Subcaves | Lost 3 parts (1p2u) 955 | -10/Subcaves | Destroyed by T9-TF7(R) with Subdweller Laser Last Messages --------------- Targeting Computer broken. Destabilizing: Short circuit. Slammed into 7R-R82(R). F7-DIS(u) builds Twisted Machinery. Slammed into 7R-R82(R). F7-DIS(u) builds Twisted Machinery. Slammed into 7R-R82(R). Sensor Array destroyed. Slammed into 7R-R82(R). Sub. Monowheel broken. Destabilizing: Short circuit. Slammed into 7R-R82(R). 7R-R82(R) knocked back. F7-DIS(u) builds Twisted Machinery. Slammed into 7R-R82(R). Sub. Power Source destroyed. Slammed into 7R-R82(R). F7-DIS(u) builds Twisted Machinery. Broken Targeting Computer destroyed. Dropped Broken Sub. Monowheel. Map ----- +----------------------------------------------------+ | ???????????????????????????????????????????# ??## | | ??????????????????????????????????????????## ### | | ??????????????????????????????????????????# #!= | | ??????????????????????????????????????????# %= | | ??????????????????????????????????????????# !" | | ????????????????????????????????????? "" | | ????????????????????????????????????#"" "# | | ?????????????????????????????????????? ##### ## | | ???????????????????????????????????????????# ##?# | | ???????????????????????????????????????????# ??## | | ??????????????????????????????????????????? ???#" | | ????????????????????????????????????????????????## | | ????????????????????????????????????????????????#" | | ?????????????###????????????????????????????????#" | | ???????????### ###?????????????????????????????## | | ???????????# #?????????????????? ???????????# | | ???????????? ???###??????????## ?????????? | | ????????????? "??## "#?????????? ??????? | | ?????????????# ""?? ""???####???? ??????? | | ????? """""??# ""#?? ??## ##??# #??????? | | ?????# ##"" ##?# ???# #??# #####??? | | ?????# """ ### ##### #??# ??? | | ????????##"""" ## ## #??# ????? | | ?????????#"" ## ##?# ?????? | | ????????#"" #### ## #?# ??????? | | ???????#"" ????###R @ #?# #???????? | | ??????? ????????## #?# #???????? | | ?????? ??????????## #?# #????????# | | ???????????????????## ## R ### #?????????# | | ????????????????????## ### #??????????# | | ?????????????????????####?# ## #??????????# | | ??????????????????????????# #### ##?????????? | | ??????????????????????????# #??# ##????????# | | ??????????????????????????# #??## #???? ### | | ??????????????????????????## "#???## #???# # | | ???????????????????????????####????# ##?? ## | | ????????????????????????????"" ????# ##? ## | | ????????????????????????????? ???# #? | | ????????????????????????????? ???# #?? | | ?????????????????????????????# ???# ##??## | | ????????????????????????????? ??## ######## | | ?????????????????????????????# ??# ## | | ?????????????????????????????# ??# | | ????????????????????????##???# ### ## ## | | ????????????????????????# ### ###?######## | | ????????????????????????# #####?????????## | | ???????????????????????? """ #" "##????????# | | ???????????????????????? ""#"""##????????# | | ?????????????????????????????##" ###??????## | | ?????????????????????????????###" ##??????# # | +----------------------------------------------------+ Best States ------------- Heat Dissipation 25 Energy Generation 15 Energy Capacity 250 Matter Stores 300 Matter Capacity 300 Sight Range 16 Robot Scan Range 14 Terrain Scan Density 10 Armor Coverage 150 Resistance: KI 35 Resistance: TH 35 Resistance: EX 35 Resistance: EM 35 Resistance: I 35 Resistance: S 35 Resistance: P 35 Evasion (%) 40 Targeting Accuracy 5 Recoil Reduction 2 Offensive Hacking 20 Item Schematics ----------------- None Robot Schematics ------------------ None Fabricated ------------ Nothing Repaired ---------- Nothing Alien Tech Used ----------------- None Achievements -------------- None Challenges ------------ None Game ------ Seed PropulsionSubatomicAxe Manual? 0 Play Time 00:12:27 Cumulative 18.0 hours Start 2025.06.03 @ 08:49:01 End 2025.06.03 @ 08:59:33 Sessions 1 Manual Loads 0 Difficulty Explorer Special Mode None Game No. 22 Rogue 6 Adventurer 5 Explorer 11 Win Type - Total 0 Types 0/0/0/0/0/0/0/0/0/0 Lore% 5 Gallery% 26 Achievement% 25 Wizard Run 0 Options --------- Layout 2 ASCII 0 Keyboard 0 Movement Mouse Keybinds 0 Fullscreen 1 Font 32/Cog Map View 50x49 Zoom Use 0% Tactical HUD 0 Map Filters NONE Filters NONE Steam 1 RUN: 71f20fe9-921a-47a0-9461-4e2108981fe9